[Event "Titled Tuesday Blitz September 27 Early 2022"]
[White "Cnejev, Vladimir-Alexandru"]
[Black "Moaataz, Ayah"]
[WhiteFideId "1260898"]
[BlackFideId "10615873"]
[WhiteElo "1983"]
[BlackElo "1993"]
[Result "1/2-1/2"]
[Round "06"]
[TimeControl "180+1"]
[Date "2022.09.27"]
[WhiteClock "0:00:13"]
[BlackClock "0:01:27"]

1. e4 {[%clk 0:02:58]}  c6 {[%clk 0:03:00]} 2. d4 {[%clk 0:02:58]}  d5 {[%clk 0:03:01]} 3. exd5 {[%clk 0:02:58]}  cxd5 {[%clk 0:03:01]} 4. Bd3 {[%clk 0:02:59]}  Nc6 {[%clk 0:03:01]} 5. c3 {[%clk 0:02:59]}  Qc7 {[%clk 0:03:02]} 6. h3 {[%clk 0:02:59]}  Nf6 {[%clk 0:03:01]} 7. Nf3 {[%clk 0:02:58]}  g6 {[%clk 0:03:01]} 8. O-O {[%clk 0:02:57]}  Bg7 {[%clk 0:03:02]} 9. Re1 {[%clk 0:02:58]}  O-O {[%clk 0:03:02]} 10. Nbd2 {[%clk 0:02:53]}  a6 {[%clk 0:03:02]} 11. Nf1 {[%clk 0:02:53]}  b5 {[%clk 0:03:02]} 12. a3 {[%clk 0:02:50]}  Rb8 {[%clk 0:03:00]} 13. Ne5 {[%clk 0:02:49]}  Nxe5 {[%clk 0:02:58]} 14. dxe5 {[%clk 0:02:50]}  Nd7 {[%clk 0:02:58]} 15. f4 {[%clk 0:02:41]}  e6 {[%clk 0:02:52]} 16. Be3 {[%clk 0:02:37]}  Nc5 {[%clk 0:02:51]} 17. Bc2 {[%clk 0:02:35]}  f6 {[%clk 0:02:48]} 18. exf6 {[%clk 0:02:11]}  Bxf6 {[%clk 0:02:49]} 19. Nh2 {[%clk 0:02:09]}  Bh4 {[%clk 0:02:42]} 20. Re2 {[%clk 0:02:01]}  Bg3 {[%clk 0:02:41]} 21. Qd4 {[%clk 0:01:35]}  Bxf4 {[%clk 0:02:34]} 22. Qxc5 {[%clk 0:01:25]}  Bxh2+ {[%clk 0:02:32]} 23. Kh1 {[%clk 0:01:25]}  Bd6 {[%clk 0:02:28]} 24. Qd4 {[%clk 0:01:19]}  Bb7 {[%clk 0:02:28]} 25. Qg4 {[%clk 0:01:16]}  Rbe8 {[%clk 0:02:24]} 26. Bh6 {[%clk 0:01:12]}  Rf7 {[%clk 0:02:15]} 27. Rxe6 {[%clk 0:01:10]}  Rxe6 {[%clk 0:02:08]} 28. Qxe6 {[%clk 0:01:11]}  Qe7 {[%clk 0:02:02]} 29. Qxe7 {[%clk 0:01:00]}  Bxe7 {[%clk 0:02:02]} 30. Rd1 {[%clk 0:00:51]}  Rf2 {[%clk 0:01:59]} 31. Bb3 {[%clk 0:00:35]}  Rxb2 {[%clk 0:01:52]} 32. Bxd5+ {[%clk 0:00:35]}  Bxd5 {[%clk 0:01:52]} 33. Rxd5 {[%clk 0:00:36]}  Bxa3 {[%clk 0:01:48]} 34. Rd7 {[%clk 0:00:31]}  Re2 {[%clk 0:01:41]} 35. Rg7+ {[%clk 0:00:22]}  Kh8 {[%clk 0:01:40]} 36. Ra7 {[%clk 0:00:19]}  Kg8 {[%clk 0:01:36]} 37. Rg7+ {[%clk 0:00:13]}  Kh8 {[%clk 0:01:36]} 38. Ra7 {[%clk 0:00:13]}  Kg8 {[%clk 0:01:27]} 39. Rg7+ {[%clk 0:00:13]} 1/2-1/2


[Site "https://www.chess.com"]

[Event "Titled Tuesday Blitz September 27 Early 2022"]
[White "Cruz, Jonathan"]
[Black "Le, Tuan Minh"]
[WhiteFideId "3802124"]
[BlackFideId "12401153"]
[WhiteElo "2406"]
[BlackElo "2530"]
[Result "0-1"]
[Round "06"]
[TimeControl "180+1"]
[Date "2022.09.27"]
[WhiteClock "0:00:01"]
[BlackClock "0:00:06"]

1. e4 {[%clk 0:02:57]}  c5 {[%clk 0:02:32]} 2. Nf3 {[%clk 0:02:56]}  Nf6 {[%clk 0:02:32]} 3. e5 {[%clk 0:02:53]}  Nd5 {[%clk 0:02:32]} 4. Nc3 {[%clk 0:02:54]}  e6 {[%clk 0:02:33]} 5. Nxd5 {[%clk 0:02:36]}  exd5 {[%clk 0:02:34]} 6. c4 {[%clk 0:02:36]}  d4 {[%clk 0:02:33]} 7. Bd3 {[%clk 0:02:36]}  d6 {[%clk 0:02:32]} 8. O-O {[%clk 0:02:33]}  Nc6 {[%clk 0:02:32]} 9. Re1 {[%clk 0:02:29]}  Be7 {[%clk 0:02:29]} 10. exd6 {[%clk 0:02:22]}  Qxd6 {[%clk 0:02:30]} 11. Ng5 {[%clk 0:02:17]}  Qh6 {[%clk 0:01:57]} 12. f4 {[%clk 0:01:57]}  g6 {[%clk 0:01:34]} 13. Be4 {[%clk 0:01:49]}  Qg7 {[%clk 0:00:23]} 14. Bxc6+ {[%clk 0:01:04]}  bxc6 {[%clk 0:00:24]} 15. Qf3 {[%clk 0:00:49]}  Bd7 {[%clk 0:00:13]} 16. d3 {[%clk 0:00:30]}  Kf8 {[%clk 0:00:14]} 17. b3 {[%clk 0:00:23]}  h6 {[%clk 0:00:13]} 18. Ne4 {[%clk 0:00:23]}  f5 {[%clk 0:00:13]} 19. Nf2 {[%clk 0:00:19]}  Qf6 {[%clk 0:00:14]} 20. Ba3 {[%clk 0:00:19]}  Kf7 {[%clk 0:00:14]} 21. Re5 {[%clk 0:00:19]}  Bd6 {[%clk 0:00:15]} 22. Re2 {[%clk 0:00:16]}  Rhe8 {[%clk 0:00:15]} 23. Rae1 {[%clk 0:00:16]}  Rxe2 {[%clk 0:00:15]} 24. Rxe2 {[%clk 0:00:17]}  a5 {[%clk 0:00:16]} 25. Rb2 {[%clk 0:00:06]}  Re8 {[%clk 0:00:14]} 26. Re2 {[%clk 0:00:05]}  Rb8 {[%clk 0:00:13]} 27. Rb2 {[%clk 0:00:05]}  Qe7 {[%clk 0:00:09]} 28. Re2 {[%clk 0:00:05]}  Qd8 {[%clk 0:00:10]} 29. Qh3 {[%clk 0:00:05]}  h5 {[%clk 0:00:10]} 30. Qf3 {[%clk 0:00:05]}  a4 {[%clk 0:00:10]} 31. Nh3 {[%clk 0:00:04]}  axb3 {[%clk 0:00:06]} 32. Ng5+ {[%clk 0:00:04]}  Kg8 {[%clk 0:00:07]} 33. axb3 {[%clk 0:00:04]}  Rxb3 {[%clk 0:00:07]} 34. Bc1 {[%clk 0:00:04]}  Rb1 {[%clk 0:00:06]} 35. Re1 {[%clk 0:00:04]}  Qa5 {[%clk 0:00:06]} 36. Qg3 {[%clk 0:00:03]}  Qa1 {[%clk 0:00:05]} 37. Nf3 {[%clk 0:00:02]}  Kg7 {[%clk 0:00:05]} 38. Nh4 {[%clk 0:00:01]}  Be8 {[%clk 0:00:05]} 39. Rxe8 {[%clk 0:00:01]}  Rxc1+ {[%clk 0:00:05]} 40. Kf2 {[%clk 0:00:01]}  Rf1+ {[%clk 0:00:05]} 41. Ke2 {[%clk 0:00:01]}  Qd1# {[%clk 0:00:06]} 0-1


[Site "https://www.chess.com"]

[Event "Titled Tuesday Blitz September 27 Early 2022"]
[White "De Souza, Cristiano Gomes"]
[Black "Omariev, Maksim"]
[WhiteFideId "2151758"]
[BlackFideId "4193423"]
[WhiteElo "2068"]
[BlackElo "2402"]
[Result "1-0"]
[Round "06"]
[TimeControl "180+1"]
[Date "2022.09.27"]
[WhiteClock "0:00:36"]
[BlackClock "0:00:02"]

1. d4 {[%clk 0:03:00]}  h5 {[%clk 0:02:55]} 2. c4 {[%clk 0:03:01]}  h4 {[%clk 0:02:56]} 3. Nc3 {[%clk 0:02:58]}  c6 {[%clk 0:02:55]} 4. h3 {[%clk 0:02:56]}  d5 {[%clk 0:02:54]} 5. Nf3 {[%clk 0:02:55]}  dxc4 {[%clk 0:02:48]} 6. a4 {[%clk 0:02:55]}  e6 {[%clk 0:02:45]} 7. e4 {[%clk 0:02:54]}  Be7 {[%clk 0:02:35]} 8. Bxc4 {[%clk 0:02:52]}  Nf6 {[%clk 0:02:36]} 9. Qe2 {[%clk 0:02:50]}  b6 {[%clk 0:02:36]} 10. Bg5 {[%clk 0:02:49]}  Nh5 {[%clk 0:02:32]} 11. Bxe7 {[%clk 0:02:45]}  Qxe7 {[%clk 0:02:33]} 12. O-O {[%clk 0:02:37]}  Rh6 {[%clk 0:02:30]} 13. Ne5 {[%clk 0:02:32]}  Bb7 {[%clk 0:02:24]} 14. f4 {[%clk 0:02:28]}  Nd7 {[%clk 0:02:24]} 15. Ng4 {[%clk 0:02:23]}  Rh8 {[%clk 0:02:12]} 16. Qe3 {[%clk 0:02:16]}  a6 {[%clk 0:02:09]} 17. Rfb1 {[%clk 0:02:10]}  b5 {[%clk 0:02:07]} 18. Bf1 {[%clk 0:02:06]}  Ng3 {[%clk 0:02:07]} 19. Ne2 {[%clk 0:02:05]}  Nxf1 {[%clk 0:02:06]} 20. Rxf1 {[%clk 0:02:04]}  Nb6 {[%clk 0:02:06]} 21. b3 {[%clk 0:02:02]}  O-O-O {[%clk 0:02:03]} 22. Rfc1 {[%clk 0:01:59]}  Qc7 {[%clk 0:01:19]} 23. axb5 {[%clk 0:01:57]}  axb5 {[%clk 0:01:20]} 24. Nc3 {[%clk 0:01:55]}  Kb8 {[%clk 0:01:08]} 25. Nxb5 {[%clk 0:01:54]}  Qd7 {[%clk 0:01:08]} 26. Ne5 {[%clk 0:01:46]}  Qe8 {[%clk 0:01:06]} 27. Na7 {[%clk 0:01:43]}  Rd6 {[%clk 0:00:58]} 28. Nc4 {[%clk 0:01:27]}  Nxc4 {[%clk 0:00:57]} 29. bxc4 {[%clk 0:01:27]}  Qd7 {[%clk 0:00:54]} 30. d5 {[%clk 0:01:26]}  cxd5 {[%clk 0:00:54]} 31. cxd5 {[%clk 0:01:25]}  exd5 {[%clk 0:00:53]} 32. e5 {[%clk 0:01:24]}  d4 {[%clk 0:00:47]} 33. Qa3 {[%clk 0:01:15]}  Ra6 {[%clk 0:00:29]} 34. Qc5 {[%clk 0:01:13]}  Rxa1 {[%clk 0:00:26]} 35. Rxa1 {[%clk 0:01:12]}  Rh6 {[%clk 0:00:22]} 36. Nb5 {[%clk 0:01:09]}  Ra6 {[%clk 0:00:02]} 37. Rxa6 {[%clk 0:01:02]}  Bxa6 {[%clk 0:00:03]} 38. Nxd4 {[%clk 0:01:01]}  Bb7 {[%clk 0:00:03]} 39. Qd6+ {[%clk 0:00:52]}  Qxd6 {[%clk 0:00:03]} 40. exd6 {[%clk 0:00:52]}  Kc8 {[%clk 0:00:04]} 41. Nf5 {[%clk 0:00:52]}  g6 {[%clk 0:00:04]} 42. Nxh4 {[%clk 0:00:51]}  Kd7 {[%clk 0:00:05]} 43. Kf2 {[%clk 0:00:50]}  Kxd6 {[%clk 0:00:05]} 44. g4 {[%clk 0:00:50]}  Ke6 {[%clk 0:00:04]} 45. Kg3 {[%clk 0:00:50]}  Kf6 {[%clk 0:00:04]} 46. Nf3 {[%clk 0:00:50]}  Bc8 {[%clk 0:00:04]} 47. Ne5 {[%clk 0:00:50]}  Kg7 {[%clk 0:00:04]} 48. h4 {[%clk 0:00:49]}  Be6 {[%clk 0:00:04]} 49. Nd3 {[%clk 0:00:47]}  Bc4 {[%clk 0:00:04]} 50. Nc5 {[%clk 0:00:47]}  Bd5 {[%clk 0:00:04]} 51. Nd7 {[%clk 0:00:46]}  Bc6 {[%clk 0:00:04]} 52. Ne5 {[%clk 0:00:46]}  Bd5 {[%clk 0:00:05]} 53. g5 {[%clk 0:00:45]}  Be6 {[%clk 0:00:05]} 54. Ng4 {[%clk 0:00:45]}  Bf5 {[%clk 0:00:05]} 55. Ne3 {[%clk 0:00:44]}  Be6 {[%clk 0:00:05]} 56. Kf3 {[%clk 0:00:45]}  Bd7 {[%clk 0:00:05]} 57. Ke4 {[%clk 0:00:45]}  Be6 {[%clk 0:00:05]} 58. Ke5 {[%clk 0:00:45]}  Bd7 {[%clk 0:00:05]} 59. f5 {[%clk 0:00:46]}  gxf5 {[%clk 0:00:03]} 60. Nxf5+ {[%clk 0:00:44]}  Kf8 {[%clk 0:00:03]} 61. Kf6 {[%clk 0:00:43]}  Be6 {[%clk 0:00:02]} 62. Nh6 {[%clk 0:00:42]}  Bd5 {[%clk 0:00:01]} 63. h5 {[%clk 0:00:42]}  Bc4 {[%clk 0:00:01]} 64. g6 {[%clk 0:00:39]}  fxg6 {[%clk 0:00:02]} 65. hxg6 {[%clk 0:00:39]}  Ba2 {[%clk 0:00:02]} 66. g7+ {[%clk 0:00:39]}  Ke8 {[%clk 0:00:02]} 67. Nf5 {[%clk 0:00:37]}  Bb3 {[%clk 0:00:03]} 68. Nd4 {[%clk 0:00:37]}  Bd5 {[%clk 0:00:02]} 69. Ne6 {[%clk 0:00:36]} 1-0


[Site "https://www.chess.com"]

[Event "Titled Tuesday Blitz September 27 Early 2022"]
[White "Diaz Perez, Michel Alejandro"]
[Black "Gajwa Ankit"]
[WhiteFideId "3517179"]
[BlackFideId "5077834"]
[WhiteElo "2313"]
[BlackElo "2036"]
[Result "1-0"]
[Round "06"]
[TimeControl "180+1"]
[Date "2022.09.27"]
[WhiteClock "0:02:31"]
[BlackClock "0:01:39"]

1. Nf3 {[%clk 0:03:00]}  Nf6 {[%clk 0:02:59]} 2. g3 {[%clk 0:03:01]}  g6 {[%clk 0:03:00]} 3. Bg2 {[%clk 0:03:01]}  Bg7 {[%clk 0:03:01]} 4. O-O {[%clk 0:03:02]}  O-O {[%clk 0:02:59]} 5. c4 {[%clk 0:03:02]}  d6 {[%clk 0:03:00]} 6. d4 {[%clk 0:03:01]}  Nbd7 {[%clk 0:03:00]} 7. Nc3 {[%clk 0:03:02]}  e5 {[%clk 0:03:00]} 8. Re1 {[%clk 0:03:03]}  c6 {[%clk 0:03:00]} 9. e4 {[%clk 0:03:02]}  exd4 {[%clk 0:02:57]} 10. Nxd4 {[%clk 0:03:03]}  Re8 {[%clk 0:02:53]} 11. h3 {[%clk 0:02:59]}  a5 {[%clk 0:02:50]} 12. Be3 {[%clk 0:02:57]}  Nc5 {[%clk 0:02:48]} 13. Qc2 {[%clk 0:02:57]}  Qe7 {[%clk 0:02:41]} 14. Rad1 {[%clk 0:02:42]}  Nfxe4 {[%clk 0:02:03]} 15. Nxe4 {[%clk 0:02:40]}  Nxe4 {[%clk 0:02:03]} 16. Bxe4 {[%clk 0:02:33]}  Qxe4 {[%clk 0:01:59]} 17. Bd2 {[%clk 0:02:33]}  Qxd4 {[%clk 0:01:40]} 18. Rxe8+ {[%clk 0:02:32]}  Bf8 {[%clk 0:01:39]} 19. Rxf8+ {[%clk 0:02:31]} 1-0


[Site "https://www.chess.com"]

[Event "Titled Tuesday Blitz September 27 Early 2022"]
[White "Eisa Mohmood, Alkhoori"]
[Black "Thorhallsson, Simon"]
[WhiteFideId "9316116"]
[BlackFideId "2310090"]
[WhiteElo "1245"]
[BlackElo "2137"]
[Result "0-1"]
[Round "06"]
[TimeControl "180+1"]
[Date "2022.09.27"]
[WhiteClock "0:00:10"]
[BlackClock "0:00:22"]

1. e4 {[%clk 0:03:00]}  c5 {[%clk 0:02:59]} 2. Nf3 {[%clk 0:03:00]}  a6 {[%clk 0:02:59]} 3. d4 {[%clk 0:03:00]}  cxd4 {[%clk 0:03:00]} 4. Nxd4 {[%clk 0:02:59]}  Nf6 {[%clk 0:03:00]} 5. Nc3 {[%clk 0:02:52]}  e5 {[%clk 0:03:00]} 6. Nf3 {[%clk 0:02:47]}  Bb4 {[%clk 0:02:57]} 7. Bc4 {[%clk 0:02:39]}  O-O {[%clk 0:02:37]} 8. Nxe5 {[%clk 0:02:34]}  Qa5 {[%clk 0:02:16]} 9. Nxf7 {[%clk 0:02:12]}  Bxc3+ {[%clk 0:02:08]} 10. Kf1 {[%clk 0:02:05]}  Rxf7 {[%clk 0:02:01]} 11. Bxf7+ {[%clk 0:02:03]}  Kxf7 {[%clk 0:02:02]} 12. bxc3 {[%clk 0:02:01]}  Qxc3 {[%clk 0:01:53]} 13. Bf4 {[%clk 0:01:50]}  d5 {[%clk 0:01:43]} 14. Bd2 {[%clk 0:01:28]}  Qc4+ {[%clk 0:01:38]} 15. Kg1 {[%clk 0:01:28]}  Nxe4 {[%clk 0:01:37]} 16. Qh5+ {[%clk 0:01:24]}  Kf8 {[%clk 0:01:26]} 17. Re1 {[%clk 0:01:02]}  Nc6 {[%clk 0:01:13]} 18. f3 {[%clk 0:00:47]}  Nf6 {[%clk 0:01:02]} 19. Qg5 {[%clk 0:00:19]}  Bd7 {[%clk 0:00:53]} 20. h4 {[%clk 0:00:20]}  Re8 {[%clk 0:00:45]} 21. Rxe8+ {[%clk 0:00:18]}  Bxe8 {[%clk 0:00:45]} 22. h5 {[%clk 0:00:18]}  h6 {[%clk 0:00:36]} 23. Qf5 {[%clk 0:00:17]}  Qd4+ {[%clk 0:00:34]} 24. Kh2 {[%clk 0:00:16]}  Qxd2 {[%clk 0:00:32]} 25. Rb1 {[%clk 0:00:13]}  Nd4 {[%clk 0:00:25]} 26. Qc8 {[%clk 0:00:10]}  Nxf3+ {[%clk 0:00:22]} 0-1


[Site "https://www.chess.com"]

[Event "Titled Tuesday Blitz September 27 Early 2022"]
[White "Estrada Nieto, Julian"]
[Black "Perez Gormaz, Matias"]
[WhiteFideId "5101018"]
[BlackFideId "3406342"]
[WhiteElo "2252"]
[BlackElo "2341"]
[Result "0-1"]
[Round "06"]
[TimeControl "180+1"]
[Date "2022.09.27"]
[WhiteClock "0:00:01"]
[BlackClock "0:00:04"]

1. e4 {[%clk 0:02:55]}  d5 {[%clk 0:02:53]} 2. exd5 {[%clk 0:02:54]}  Qxd5 {[%clk 0:02:54]} 3. Nc3 {[%clk 0:02:52]}  Qd8 {[%clk 0:02:54]} 4. d4 {[%clk 0:02:52]}  g6 {[%clk 0:02:55]} 5. Nf3 {[%clk 0:02:50]}  Bg7 {[%clk 0:02:56]} 6. Bc4 {[%clk 0:02:46]}  Nf6 {[%clk 0:02:56]} 7. O-O {[%clk 0:02:35]}  O-O {[%clk 0:02:56]} 8. h3 {[%clk 0:02:32]}  a6 {[%clk 0:02:55]} 9. a4 {[%clk 0:02:30]}  Nc6 {[%clk 0:02:54]} 10. Re1 {[%clk 0:02:29]}  e6 {[%clk 0:02:54]} 11. Bg5 {[%clk 0:02:25]}  Ne7 {[%clk 0:02:54]} 12. Ne5 {[%clk 0:02:15]}  h6 {[%clk 0:02:51]} 13. Bf4 {[%clk 0:01:56]}  Nf5 {[%clk 0:02:31]} 14. d5 {[%clk 0:01:51]}  exd5 {[%clk 0:01:06]} 15. Nxd5 {[%clk 0:01:50]}  Nxd5 {[%clk 0:01:07]} 16. Qxd5 {[%clk 0:01:43]}  Qxd5 {[%clk 0:00:58]} 17. Bxd5 {[%clk 0:01:43]}  g5 {[%clk 0:00:24]} 18. Bh2 {[%clk 0:01:41]}  Nd4 {[%clk 0:00:24]} 19. Rac1 {[%clk 0:01:24]}  c6 {[%clk 0:00:18]} 20. c3 {[%clk 0:00:45]}  cxd5 {[%clk 0:00:08]} 21. cxd4 {[%clk 0:00:45]}  Be6 {[%clk 0:00:09]} 22. Rc7 {[%clk 0:00:40]}  b5 {[%clk 0:00:09]} 23. a5 {[%clk 0:00:40]}  Rfc8 {[%clk 0:00:09]} 24. Rec1 {[%clk 0:00:39]}  Rxc7 {[%clk 0:00:08]} 25. Rxc7 {[%clk 0:00:39]}  Bf8 {[%clk 0:00:09]} 26. Nd3 {[%clk 0:00:31]}  Bf5 {[%clk 0:00:07]} 27. Nc5 {[%clk 0:00:29]}  h5 {[%clk 0:00:05]} 28. Be5 {[%clk 0:00:26]}  h4 {[%clk 0:00:05]} 29. Rc6 {[%clk 0:00:20]}  Bc8 {[%clk 0:00:03]} 30. Kf1 {[%clk 0:00:16]}  Kh7 {[%clk 0:00:03]} 31. Bd6 {[%clk 0:00:13]}  Bg7 {[%clk 0:00:03]} 32. Be5 {[%clk 0:00:12]}  Bf8 {[%clk 0:00:03]} 33. Bf6 {[%clk 0:00:08]}  Bh6 {[%clk 0:00:02]} 34. Ke2 {[%clk 0:00:04]}  g4 {[%clk 0:00:02]} 35. hxg4 {[%clk 0:00:01]}  Bxg4+ {[%clk 0:00:03]} 36. f3 {[%clk 0:00:02]}  h3 {[%clk 0:00:03]} 37. gxh3 {[%clk 0:00:01]}  Bxh3 {[%clk 0:00:03]} 38. Kf2 {[%clk 0:00:02]}  Bc8 {[%clk 0:00:03]} 39. Be5 {[%clk 0:00:02]}  Bc1 {[%clk 0:00:03]} 40. b3 {[%clk 0:00:01]}  Bd2 {[%clk 0:00:04]} 41. Ke2 {[%clk 0:00:01]}  Bxa5 {[%clk 0:00:04]} 0-1


[Site "https://www.chess.com"]

[Event "Titled Tuesday Blitz September 27 Early 2022"]
[White "Ezat, Mohamed"]
[Black "Sanchez, Robert"]
[WhiteFideId "10600906"]
[BlackFideId "2034360"]
[WhiteElo "2386"]
[BlackElo "2394"]
[Result "1-0"]
[Round "06"]
[TimeControl "180+1"]
[Date "2022.09.27"]
[WhiteClock "0:02:19"]
[BlackClock "0:01:48"]

1. d4 {[%clk 0:02:49]}  d5 {[%clk 0:02:58]} 2. c4 {[%clk 0:02:47]}  e6 {[%clk 0:02:58]} 3. Nc3 {[%clk 0:02:46]}  Nf6 {[%clk 0:02:58]} 4. cxd5 {[%clk 0:02:47]}  exd5 {[%clk 0:02:58]} 5. Bg5 {[%clk 0:02:47]}  Be7 {[%clk 0:02:58]} 6. e3 {[%clk 0:02:46]}  c6 {[%clk 0:02:58]} 7. Qc2 {[%clk 0:02:45]}  O-O {[%clk 0:02:57]} 8. Bd3 {[%clk 0:02:43]}  h6 {[%clk 0:02:55]} 9. Bxf6 {[%clk 0:02:41]}  Bxf6 {[%clk 0:02:55]} 10. Nge2 {[%clk 0:02:42]}  a5 {[%clk 0:02:55]} 11. O-O {[%clk 0:02:41]}  Na6 {[%clk 0:02:56]} 12. a3 {[%clk 0:02:41]}  Bd7 {[%clk 0:02:51]} 13. Rab1 {[%clk 0:02:41]}  c5 {[%clk 0:02:47]} 14. dxc5 {[%clk 0:02:39]}  Nxc5 {[%clk 0:02:45]} 15. Bf5 {[%clk 0:02:36]}  Be6 {[%clk 0:02:37]} 16. Rfd1 {[%clk 0:02:33]}  Rc8 {[%clk 0:02:35]} 17. Nf4 {[%clk 0:02:30]}  Bxc3 {[%clk 0:02:09]} 18. bxc3 {[%clk 0:02:28]}  Qd7 {[%clk 0:01:56]} 19. Bxe6 {[%clk 0:02:21]}  fxe6 {[%clk 0:01:56]} 20. c4 {[%clk 0:02:21]}  Ne4 {[%clk 0:01:48]} 21. Qxe4 {[%clk 0:02:19]} 1-0


[Site "https://www.chess.com"]

[Event "Titled Tuesday Blitz September 27 Early 2022"]
[White "Fernandez De La Vara, Arnaldo"]
[Black "Pacheco Lugo, Alejandro Jose"]
[WhiteFideId "3518388"]
[BlackFideId "3903745"]
[WhiteElo "2387"]
[BlackElo "2146"]
[Result "1-0"]
[Round "06"]
[TimeControl "180+1"]
[Date "2022.09.27"]
[WhiteClock "0:00:04"]
[BlackClock "0:00:01"]

1. Nf3 {[%clk 0:03:00]}  Nf6 {[%clk 0:02:59]} 2. g3 {[%clk 0:03:01]}  d5 {[%clk 0:02:59]} 3. Bg2 {[%clk 0:03:01]}  e6 {[%clk 0:03:00]} 4. O-O {[%clk 0:03:01]}  Be7 {[%clk 0:03:01]} 5. d4 {[%clk 0:03:02]}  O-O {[%clk 0:03:02]} 6. c4 {[%clk 0:03:02]}  dxc4 {[%clk 0:03:03]} 7. Qc2 {[%clk 0:03:03]}  a6 {[%clk 0:03:02]} 8. a4 {[%clk 0:03:04]}  Bd7 {[%clk 0:03:02]} 9. Ne5 {[%clk 0:03:05]}  Bc6 {[%clk 0:03:01]} 10. Nxc6 {[%clk 0:03:04]}  Nxc6 {[%clk 0:03:02]} 11. e3 {[%clk 0:03:04]}  Na5 {[%clk 0:02:58]} 12. Nd2 {[%clk 0:03:03]}  c5 {[%clk 0:02:56]} 13. dxc5 {[%clk 0:03:02]}  Bxc5 {[%clk 0:02:54]} 14. Nxc4 {[%clk 0:02:59]}  Rc8 {[%clk 0:02:47]} 15. Rd1 {[%clk 0:02:43]}  Qc7 {[%clk 0:02:42]} 16. Nxa5 {[%clk 0:02:35]}  Qxa5 {[%clk 0:02:43]} 17. Qb3 {[%clk 0:02:36]}  Rc7 {[%clk 0:02:27]} 18. Bd2 {[%clk 0:02:24]}  Qb6 {[%clk 0:02:25]} 19. Qxb6 {[%clk 0:02:24]}  Bxb6 {[%clk 0:02:26]} 20. a5 {[%clk 0:02:15]}  Bc5 {[%clk 0:02:19]} 21. Rac1 {[%clk 0:02:06]}  Rfc8 {[%clk 0:02:19]} 22. b4 {[%clk 0:01:51]}  Be7 {[%clk 0:02:16]} 23. Bxb7 {[%clk 0:01:50]}  Rxc1 {[%clk 0:02:13]} 24. Bxc1 {[%clk 0:01:50]}  Rb8 {[%clk 0:02:08]} 25. Bf3 {[%clk 0:01:25]}  Bxb4 {[%clk 0:02:06]} 26. Bd2 {[%clk 0:01:25]}  Bxd2 {[%clk 0:01:53]} 27. Rxd2 {[%clk 0:01:26]}  Ne8 {[%clk 0:01:32]} 28. Rd7 {[%clk 0:01:18]}  Kf8 {[%clk 0:01:19]} 29. Ra7 {[%clk 0:01:11]}  Nd6 {[%clk 0:01:17]} 30. Rxa6 {[%clk 0:01:04]}  Rb1+ {[%clk 0:01:16]} 31. Kg2 {[%clk 0:01:04]}  Nc4 {[%clk 0:01:17]} 32. Be2 {[%clk 0:00:56]}  Ne5 {[%clk 0:00:52]} 33. Rd6 {[%clk 0:00:49]}  Ra1 {[%clk 0:00:49]} 34. a6 {[%clk 0:00:49]}  Ke7 {[%clk 0:00:49]} 35. Rb6 {[%clk 0:00:49]}  Kf6 {[%clk 0:00:43]} 36. Rb7 {[%clk 0:00:47]}  g5 {[%clk 0:00:39]} 37. f4 {[%clk 0:00:43]}  gxf4 {[%clk 0:00:38]} 38. gxf4 {[%clk 0:00:42]}  Ng6 {[%clk 0:00:37]} 39. a7 {[%clk 0:00:24]}  Ra2 {[%clk 0:00:37]} 40. Kf1 {[%clk 0:00:22]}  Nh4 {[%clk 0:00:34]} 41. e4 {[%clk 0:00:15]}  h6 {[%clk 0:00:24]} 42. Bb5 {[%clk 0:00:05]}  Nf3 {[%clk 0:00:22]} 43. Bc6 {[%clk 0:00:04]}  Nd2+ {[%clk 0:00:15]} 44. Ke1 {[%clk 0:00:04]}  Nf3+ {[%clk 0:00:07]} 45. Kd1 {[%clk 0:00:04]}  Nd4 {[%clk 0:00:08]} 46. e5+ {[%clk 0:00:04]}  Kf5 {[%clk 0:00:06]} 47. Rxf7+ {[%clk 0:00:04]}  Kg4 {[%clk 0:00:06]} 48. a8=Q {[%clk 0:00:03]}  Rxa8 {[%clk 0:00:01]} 49. Bxa8 {[%clk 0:00:04]} 1-0


[Site "https://www.chess.com"]